bitfinex/quotes_SOLUSD_20240909
["timestamp","ask_amount","ask_price","bid_price","bid_amount"]
[1725894594715,45.0,128.62,128.58,7.777]
[1725894595015,7.776,128.6,128.57,19.4436]
[1725894595326,45.0,128.62,128.54,54.7]
[1725894595327,52.777,128.59,128.54,7.7795]
[1725894595611,45.0,128.59,128.55,7.7789]
[1725894596010,45.0,128.59,128.56,7.7783]
[1725894596196,45.0,128.59,128.57,7.7777]
[1725894596715,52.7761,128.6,128.56,7.7783]
[1725894597011,52.7761,128.6,128.55,27.2258]
[1725894598214,45.0,128.6,128.54,7.7795]
[1725894598423,50.0,128.59,128.53,7.7802]
[1725894598593,52.7773,128.58,128.53,7.7802]
[1725894598800,45.0,128.58,128.54,7.7793]
[1725894599600,45.0,128.58,128.53,7.7801]
[1725894600523,7.7783,128.57,128.52,27.2321]
[1725894600724,45.0,128.56,128.53,7.7801]
[1725894601106,52.7786,128.56,128.52,27.232]
[1725894601401,45.0,128.56,128.52,27.232]
[1725894601797,45.0,128.56,128.49,19.4557]
[1725894602011,45.0,128.56,128.44,82.64060924]
[1725894602012,65.3901,128.55,128.46,19.461]
[1725894602217,7.7805,128.53,128.49,7.7826]
[1725894602424,45.0,128.52,128.48,27.2407]
[1725894602806,45.0,128.52,128.51,7.7814]
[1725894603010,15.3901,128.55,128.5,19.4545]
[1725894603211,45.0,128.54,128.52,7.7803]
[1725894603396,45.0,128.54,128.51,7.7814]
[1725894603603,7.7805,128.53,128.49,7.7826]
[1725894603816,45.0,128.52,128.5,7.782]
[1725894604211,45.0,128.53,128.5,7.782]
[1725894604411,45.0,128.54,128.5,7.782]
[1725894604716,52.7797,128.54,128.5,7.782]
[1725894604898,45.0,128.54,128.5,7.782]
[1725894605298,52.78,128.54,128.5,7.782]
[1725894605497,7.781,128.52,128.48,7.7831]
[1725894605718,45.0,128.51,128.48,7.7831]
[1725894606223,52.7815,128.51,128.47,7.7838]
[1725894606599,45.0,128.51,128.47,7.7836]
[1725894606912,52.7811,128.52,128.47,7.7836]
[1725894607303,45.0,128.52,128.41,22.8214]
[1725894607508,7.7831,128.49,128.44,7.7853]
[1725894607723,7.7831,128.49,128.43,19.4645]
[1725894607902,45.0,128.48,128.43,19.4645]
[1725894608103,7.7839,128.47,128.43,27.2506]
[1725894608294,45.0,128.46,128.43,27.2506]
[1725894608807,45.0,128.46,128.4,19.4695]
[1725894609015,45.0,128.46,128.42,7.7864]
[1725894609904,52.7847,128.46,128.4,19.4695]
[1725894610316,52.7847,128.46,128.41,7.7874]
[1725894610699,7.7851,128.45,128.4,27.2575]
[1725894610915,45.0,128.44,128.41,7.7874]
[1725894611818,45.0,128.44,128.4,19.4695]
[1725894612207,45.0,128.44,128.42,7.7868]
[1725894612539,95.0,128.45,128.39,7.7887]
[1725894612711,7.7859,128.44,128.4,7.7881]
[1725894613024,7.7859,128.44,128.37,19.4739]
[1725894613025,45.0,128.43,128.39,7.7885]
[1725894613331,7.787,128.42,128.38,7.7892]
[1725894613498,7.787,128.42,128.37,19.4739]
[1725894613499,15.1678,128.42,128.37,19.4739]
[1725894613700,45.0,128.41,128.38,7.7888]
[1725894614126,45.0,128.41,128.37,27.2636]
[1725894614430,7.7883,128.4,128.37,19.4739]
[1725894614736,45.0,128.39,128.36,7.79]
[1725894614900,45.0,128.39,128.35,7.791]
[1725894615101,52.7888,128.39,128.35,7.791]
[1725894615907,45.0,128.39,128.36,7.7904]
[1725894616318,52.7888,128.39,128.35,7.7911]
[1725894617117,45.0,128.39,128.34,19.4784]
[1725894617317,45.0,128.39,128.36,7.7904]
[1725894618238,23.5177,128.35,128.32,0.8374188]
[1725894618435,45.0,128.34,128.32,0.8374188]
[1725894618815,52.7918,128.34,128.32,0.8374188]
[1725894619213,7.7924,128.33,128.32,0.8374188]
[1725894619414,102.7924,128.33,128.32,0.8374188]
[1725894620233,50.0,128.31,128.25,19.4925]
[1725894620425,57.7937,128.31,128.26,7.7961]
[1725894620942,7.7943,128.3,128.25,27.2895]
[1725894621529,50.0,128.29,128.25,27.2895]
[1725894621715,57.7937,128.31,128.26,7.7965]
[1725894621915,50.0,128.31,128.25,27.2896]
[1725894622346,45.0,128.3,128.25,27.2896]
[1725894623236,16.415,128.28,128.24,7.7977]
[1725894623439,45.0,128.27,128.24,7.7977]
[1725894624137,45.0,128.27,128.24,19.4937]
[1725894624314,45.0,128.27,128.26,7.7966]
[1725894625230,16.415,128.32,128.26,19.4901]
[1725894625417,24.208,128.32,128.26,19.4901]
[1725894625611,50.0,128.3,128.26,27.2863]
[1725894626030,7.7937,128.31,128.27,7.796]
[1725894626225,74.2081,128.32,128.27,7.796]
[1725894626532,57.7944,128.3,128.26,19.4901]
[1725894626741,45.0,128.29,128.26,27.2866]
[1725894627560,16.415,128.32,128.26,19.4901]
[1725894627846,17.77341705,128.32,128.28,27.283]
[1725894628137,17.77341705,128.32,128.29,7.7944]
[1725894628443,17.77341705,128.32,128.28,19.4877]
[1725894629121,45.0,128.31,128.28,19.4877]
[1725894629328,45.0,128.31,128.29,7.7947]
[1725894630344,45.0,128.31,128.28,27.283]
[1725894630525,52.7936,128.31,128.28,19.4877]
[1725894630731,102.7936,128.31,128.26,7.7965]
[1725894631225,45.0,128.31,128.27,19.4895]
[1725894631423,45.0,128.31,128.23,38.9895]
[1725894631424,45.0,128.31,128.26,38.9808]
[1725894631629,45.0,128.31,128.3,7.7942]
[1725894632360,95.0,128.31,128.26,19.4907]
[1725894632527,7.7955,128.28,128.23,27.2936]
[1725894632846,52.7961,128.27,128.23,27.2936]
[1725894633031,52.7961,128.27,128.24,7.7977]
[1725894633032,45.0,128.27,128.24,7.7977]
[1725894633235,45.0,128.27,128.26,7.7966]
[1725894633539,45.0,128.27,128.25,27.2891]
[1725894633740,45.0,128.28,128.25,27.2891]
[1725894633929,45.0,128.28,128.22,19.4969]
[1725894634127,52.7955,128.28,128.23,7.798]
[1725894634733,7.7962,128.27,128.23,7.798]
[1725894634943,45.0,128.26,128.23,7.798]
[1725894635146,52.7968,128.26,128.22,19.4969]
[1725894635343,7.7973,128.25,128.22,19.4969]
[1725894635833,45.0,128.24,128.22,19.4969]
[1725894636039,45.0,128.24,128.21,7.7991]
[1725894636351,45.0,128.24,128.19,20.3391188]
[1725894637159,45.0,128.24,128.2,7.7998]
[1725894637950,52.798,128.24,128.2,7.7998]
[1725894638137,95.0,128.24,128.19,20.3391188]
[1725894638340,95.0,128.24,128.19,28.1395188]
[1725894638341,102.798,128.24,128.19,28.1395188]
[1725894638736,102.798,128.24,128.2,7.8002]
[1725894639164,45.0,128.24,128.21,7.7996]
[1725894639334,45.0,128.24,128.19,20.3391188]
[1725894639535,45.0,128.24,128.21,7.7992]
[1725894639838,45.0,128.24,128.21,7.7995]
[1725894640238,45.0,128.24,128.2,7.8002]
[1725894640649,45.0,128.24,128.21,7.7995]
[1725894641360,45.0,128.24,128.2,7.8001]
[1725894642456,45.0,128.24,128.21,7.7995]
[1725894643250,45.0,128.24,128.22,7.7989]
[1725894643454,45.0,128.24,128.21,27.2982]
[1725894645540,45.0,128.24,128.22,7.799]
[1725894646050,45.0,128.24,128.23,7.7984]
[1725894646246,73.5739,128.28,128.24,7.7976]
[1725894646456,7.796,128.27,128.23,27.2938]
[1725894647664,15.7783,128.28,128.2,39.0]
[1725894647850,15.7783,128.28,128.25,27.2888]
[1725894648245,50.0,128.27,128.22,19.4963]
[1725894648644,50.0,128.27,128.19,20.3387188]
[1725894648963,7.7982,128.24,128.2,7.7999]
[1725894649166,45.0,128.23,128.21,7.7995]
[1725894649368,45.0,128.24,128.21,7.7995]
[1725894649847,52.7979,128.24,128.2,7.8]
[1725894650064,45.0,128.24,128.19,20.3387188]
[1725894650265,52.798,128.24,128.19,28.1390188]
[1725894650642,57.7986,128.23,128.19,28.1390188]
[1725894650847,45.0,128.22,128.19,28.1390188]
[1725894651260,45.0,128.22,128.19,0.8374188]
[1725894652045,7.7962,128.27,128.22,7.7989]
[1725894652267,65.7783,128.28,128.19,0.8374188]
[1725894652482,7.796,128.27,128.23,7.7982]
[1725894652846,73.5738,128.28,128.24,7.7977]
[1725894653047,15.7783,128.28,128.24,19.4933]
[1725894653275,73.5743,128.28,128.24,19.4933]
[1725894653849,73.5743,128.28,128.24,27.2911]
[1725894654371,65.7783,128.28,128.24,27.2911]
[1725894654568,45.0,128.27,128.24,27.2911]
[1725894654871,15.7783,128.28,128.25,7.797]
[1725894655770,15.7783,128.28,128.26,7.7965]
[1725894655971,15.7783,128.28,128.25,7.7971]
[1725894656847,15.7783,128.28,128.24,27.291]
[1725894657263,45.0,128.27,128.24,27.291]
[1725894658868,52.796,128.27,128.24,19.4933]
[1725894659180,7.7974,128.25,128.21,19.4985]
[1725894659349,45.0,128.24,128.21,19.4985]
[1725894659548,45.0,128.24,128.2,7.7997]
[1725894659549,52.798,128.24,128.2,7.7997]
[1725894659858,7.7985,128.23,128.19,8.6382188]
[1725894660066,45.0,128.22,128.19,8.6382188]
[1725894660273,45.0,128.22,128.2,7.8001]
[1725894660452,45.0,128.23,128.2,7.8001]
[1725894660654,52.7986,128.23,128.19,0.8374188]
[1725894660852,45.0,128.23,128.19,0.8374188]
[1725894661414,57.7992,128.22,128.19,0.8374188]
[1725894661567,45.0,128.21,128.19,0.8374188]
[1725894663765,52.7999,128.21,128.19,0.8374188]
[1725894664271,57.8003,128.2,128.19,0.8374188]
[1725894664470,102.8003,128.2,128.19,0.8374188]
[1725894666180,102.8003,128.2,128.1,6.567]
[1725894666181,7.8028,128.16,128.12,27.3169]
[1725894666382,7.8043,128.14,128.08,58.5546]
[1725894666592,45.0,128.13,128.08,58.5546]
[1725894666771,95.0,128.15,128.11,7.8053]
[1725894666973,45.0,128.15,128.12,19.5122]
[1725894667166,15.105,128.19,128.16,19.5066]
[1725894667363,268.33900296,128.26,128.18,7.8015]
[1725894667364,16.3623,128.22,128.18,7.8015]
[1725894667605,50.0,128.21,128.17,7.8019]
[1725894668077,7.8005,128.2,128.12,45.5968]
[1725894668895,95.0,128.19,128.12,6.571]
[1725894669087,7.802,128.18,128.09,50.35160924]
[1725894669284,45.0,128.17,128.11,39.0262]
[1725894669577,45.0,128.19,128.16,7.8022]
[1725894669777,45.0,128.2,128.16,7.8022]
[1725894670097,45.0,128.2,128.17,7.802]
[1725894670298,1.35439891,128.21,128.18,7.8013]
[1725894670598,16.3623,128.22,128.19,7.8008]
[1725894670901,74.1614,128.22,128.18,27.3047]
[1725894671097,16.3623,128.22,128.15,1.28701823]
[1725894671306,50.0,128.23,128.2,19.5001]
[1725894671480,9.15193256,128.24,128.2,27.3003]
[1725894671795,9.15193256,128.24,128.2,19.5001]
[1725894671982,50.0,128.22,128.17,19.5046]
[1725894672179,50.0,128.2,128.14,19.5091]
[1725894672395,7.801,128.19,128.14,19.5091]
[1725894672583,7.801,128.19,128.14,27.3129]
[1725894672785,7.8017,128.18,128.14,19.5091]
[1725894673101,57.8017,128.18,128.14,19.5091]
[1725894673297,45.0,128.17,128.14,19.5091]
[1725894673512,45.0,128.17,128.14,27.3129]
[1725894674102,52.8021,128.17,128.14,19.5091]
[1725894674286,45.0,128.17,128.12,7.8051]
[1725894675377,52.8022,128.17,128.13,7.8044]
[1725894675702,23.9585,128.19,128.14,7.8037]
[1725894676205,50.0,128.16,128.13,19.5108]
[1725894676415,50.0,128.16,128.13,27.3153]
[1725894676616,57.8021,128.18,128.13,27.3153]
[1725894676909,50.0,128.18,128.13,19.5108]
[1725894677212,50.0,128.18,128.14,7.8038]
[1725894678094,50.0,128.18,128.15,7.8029]
[1725894678612,45.0,128.17,128.16,7.8027]
[1725894678788,45.0,128.17,128.15,7.8031]
[1725894678993,45.0,128.18,128.15,7.8031]
[1725894679508,95.0,128.18,128.14,7.8038]
[1725894679916,57.8027,128.16,128.11,7.8055]
[1725894680091,45.0,128.15,128.11,7.8055]
[1725894680489,57.8039,128.14,128.1,27.3214]
[1725894680695,45.0,128.13,128.1,19.5152]
[1725894681090,45.0,128.13,128.1,27.3214]
[1725894683214,45.0,128.13,128.1,19.5152]
[1725894683399,45.0,128.13,128.12,7.8051]
[1725894684200,45.0,128.13,128.11,7.8056]
[1725894684408,45.0,128.13,128.11,7.8055]
[1725894684929,50.0,128.18,128.12,19.5124]
[1725894685128,57.8017,128.18,128.14,7.8034]
[1725894685299,50.0,128.18,128.13,7.8045]
[1725894685701,57.8015,128.18,128.13,7.8045]
[1725894685898,57.8015,128.18,128.12,19.5124]
[1725894685899,50.0,128.18,128.14,7.8035]
[1725894686426,57.8017,128.18,128.14,7.8035]
[1725894686622,50.0,128.18,128.15,7.8033]
[1725894687102,50.0,128.18,128.14,27.3129]
[1725894687307,50.0,128.18,128.15,7.8031]
[1725894688598,45.0,128.17,128.15,7.8031]
[1725894689121,45.0,128.17,128.16,7.8027]
[1725894689605,57.7986,128.23,128.18,7.8013]
[1725894689922,25.57533256,128.24,128.19,7.8009]
[1725894690223,17.77713256,128.24,128.21,7.7993]
[1725894690904,67.77713256,128.24,128.2,27.2998]
[1725894691106,25.57493256,128.24,128.2,27.2998]
[1725894691431,17.77713256,128.24,128.2,27.2998]
[1725894691648,17.77713256,128.24,128.22,7.799]
[1725894691935,17.77713256,128.24,128.21,7.7995]
[1725894692131,1.35403256,128.24,128.22,7.7989]
[1725894692307,7.7968,128.26,128.22,7.7989]
[1725894692639,7.7972,128.25,128.21,7.7995]
[1725894692932,50.0,128.24,128.2,19.4997]
[1725894693607,45.0,128.23,128.2,19.4997]
[1725894694117,52.799,128.23,128.18,7.8013]
[1725894694525,52.799,128.23,128.19,7.8007]
[1725894694706,7.7993,128.22,128.18,7.8013]
[1725894694903,45.0,128.21,128.18,7.8013]
[1725894695107,45.0,128.21,128.17,27.3062]
[1725894695326,45.0,128.21,128.18,7.8014]
[1725894695520,45.0,128.21,128.19,7.8006]
[1725894695725,45.0,128.22,128.19,7.8006]
[1725894695908,50.0,128.26,128.19,19.5018]
[1725894696124,50.0,128.26,128.15,43.71340924]
[1725894696125,50.0,128.26,128.22,7.7988]
[1725894696428,57.7966,128.26,128.21,27.2981]
[1725894697331,7.7973,128.25,128.21,26.7981]
[1725894697531,45.0,128.24,128.21,26.7981]
[1725894698224,50.0,128.24,128.21,26.7981]
[1725894698532,45.0,128.23,128.21,18.9986]
[1725894698936,52.7986,128.23,128.18,19.5026]
[1725894699135,50.0,128.22,128.18,19.5026]
[1725894699315,50.0,128.2,128.15,27.3105]
[1725894699513,57.8005,128.2,128.16,7.8026]
[1725894699941,45.0,128.19,128.16,7.8026]
[1725894700245,52.8009,128.19,128.15,27.3106]
[1725894700413,45.0,128.19,128.15,27.3106]
[1725894701348,7.8023,128.17,128.12,27.3166]
[1725894701515,45.0,128.16,128.12,19.5119]
[1725894701832,45.0,128.16,128.14,19.5087]
[1725894702036,16.4105,128.21,128.11,43.71340924]
[1725894702251,16.4105,128.21,128.18,7.8011]
[1725894703038,73.8618,128.24,128.19,7.8009]
[1725894703822,7.7985,128.23,128.18,7.8014]
[1725894704740,7.7985,128.23,128.19,7.8007]
[1725894704939,7.7987,128.23,128.18,7.8013]
[1725894705837,73.8618,128.24,128.19,7.8008]
[1725894706021,66.0639,128.24,128.19,7.8008]
[1725894706338,66.84076765,128.27,128.23,7.798]
[1725894706564,1.35386765,128.27,128.26,7.7966]
[1725894706745,34.30440356,128.3,128.27,7.7959]
[1725894707077,34.30440356,128.3,128.25,19.4922]
[1725894707078,15.4869,128.3,128.25,19.4922]
[1725894707250,15.4869,128.3,128.27,7.796]
[1725894707554,15.4869,128.3,128.27,19.4892]
[1725894707757,15.4869,128.33,128.27,19.4892]
[1725894707956,43.45394203,128.33,128.28,7.7948]
[1725894708157,7.7936,128.31,128.27,27.2851]
[1725894708347,50.0,128.32,128.27,19.4892]
[1725894708547,7.7944,128.3,128.25,7.7968]
[1725894709561,7.7944,128.3,128.26,7.7965]
[1725894709751,57.7944,128.3,128.25,7.7971]
[1725894710189,45.0,128.29,128.26,19.491]
[1725894710355,45.0,128.3,128.26,19.491]
[1725894710661,45.0,128.31,128.28,7.7953]
[1725894710841,45.0,128.31,128.27,7.7959]
[1725894711039,45.0,128.31,128.28,7.7953]
[1725894711445,45.0,128.31,128.29,7.7947]
[1725894711657,45.0,128.32,128.28,7.7953]
[1725894711859,102.7932,128.32,128.27,7.7959]
[1725894712044,102.7932,128.32,128.26,19.491]
[1725894712045,45.0,128.32,128.26,19.491]
[1725894712241,45.0,128.32,128.29,7.7947]
[1725894712446,16.84154559,128.33,128.29,7.7947]
[1725894712752,16.84154559,128.33,128.3,7.7942]
[1725894712950,16.84154559,128.33,128.31,7.7935]
[1725894713150,16.84154559,128.33,128.3,27.279]
[1725894713652,45.0,128.32,128.3,27.279]
[1725894714264,45.0,128.32,128.28,7.7949]
[1725894714555,52.793,128.32,128.28,7.7949]
[1725894714865,52.793,128.32,128.27,27.2854]
[1725894715175,102.7931,128.32,128.27,27.2854]
[1725894715351,52.7931,128.32,128.28,7.7953]
[1725894715552,45.0,128.32,128.28,7.7953]
[1725894715964,16.84154559,128.33,128.31,7.7931]
[1725894716166,1.35464559,128.33,128.31,7.7931]
[1725894716361,1.35464559,128.33,128.3,7.7942]
[1725894716878,1.35464559,128.33,128.29,27.2811]
[1725894717074,9.14734559,128.33,128.29,19.4865]
[1725894717282,45.0,128.32,128.26,25.9521]
[1725894717473,46.35464559,128.33,128.26,25.9521]
[1725894717790,54.14714559,128.33,128.29,7.7948]
[1725894718386,7.793,128.32,128.28,7.7953]
[1725894718566,52.7938,128.31,128.27,7.7958]
[1725894719281,45.0,128.31,128.28,7.7954]
[1725894719482,45.0,128.31,128.28,19.4881]
[1725894719686,45.0,128.31,128.3,7.7942]
[1725894719864,1.35464559,128.33,128.3,7.7942]
[1725894720066,9.14744559,128.33,128.29,7.7946]
[1725894720277,9.14744559,128.33,128.28,27.2833]
[1725894720278,9.14724559,128.33,128.28,27.2833]
[1725894721185,52.793,128.32,128.28,27.2833]
[1725894721761,52.793,128.32,128.29,7.7948]
[1725894722089,15.3077,128.36,128.32,7.7925]
[1725894722385,23.0984,128.36,128.32,7.7925]
[1725894722756,73.0984,128.36,128.32,7.7925]
[1725894722978,65.3077,128.36,128.3,19.4851]
[1725894723179,73.0984,128.36,128.32,7.7924]
[1725894723783,23.0984,128.36,128.32,7.7924]
[1725894723984,7.7912,128.35,128.31,7.7934]
[1725894724160,7.7918,128.34,128.3,27.2792]
[1725894724364,45.0,128.33,128.3,27.2792]
[1725894724867,102.792,128.34,128.3,27.2792]
[1725894725267,102.792,128.34,128.27,55.6195]
[1725894725268,7.7925,128.33,128.29,7.7946]
[1725894725478,45.0,128.32,128.29,7.7946]
[1725894725776,45.0,128.32,128.27,19.4889]
[1725894726085,45.0,128.33,128.27,19.4889]
[1725894726581,7.7932,128.32,128.28,7.795]
[1725894726795,45.0,128.31,128.28,7.795]
[1725894726958,45.0,128.31,128.29,7.7948]
[1725894727163,45.0,128.32,128.29,7.7948]
[1725894728186,45.0,128.32,128.27,19.4889]
[1725894728389,7.7931,128.32,128.29,7.7947]
[1725894728587,45.0,128.31,128.29,7.7947]
[1725894728775,52.7926,128.33,128.29,7.7947]
[1725894728992,7.793,128.32,128.28,7.7951]
[1725894729187,45.0,128.31,128.28,7.7951]
[1725894729609,45.0,128.31,128.29,7.7947]
[1725894730688,45.0,128.31,128.27,19.4889]
[1725894730882,7.7943,128.3,128.27,19.4889]
[1725894731100,45.0,128.29,128.26,7.7962]
[1725894731909,45.0,128.29,128.27,7.796]
[1725894732113,95.0,128.3,128.26,27.2878]
[1725894732404,95.0,128.3,128.26,19.4914]
[1725894732405,7.7949,128.29,128.26,19.4914]
[1725894732606,45.0,128.28,128.26,19.4914]
[1725894733384,7.7958,128.28,128.23,27.293]
[1725894733584,45.0,128.27,128.24,7.7978]
[1725894734595,45.0,128.27,128.26,7.7966]
[1725894734906,50.0,128.32,128.28,7.795]
[1725894735115,50.0,128.32,128.27,27.2855]
[1725894735293,7.7941,128.31,128.27,19.4897]
[1725894735491,7.7943,128.3,128.27,19.4897]
[1725894735689,50.0,128.3,128.24,19.494]
[1725894735893,7.7952,128.29,128.24,27.2916]
[1725894736196,7.7954,128.28,128.24,27.2916]
[1725894736514,45.0,128.27,128.24,27.2916]
[1725894737024,52.7964,128.27,128.23,7.7983]
[1725894737706,52.7964,128.27,128.18,6.5044]
[1725894737707,7.7978,128.24,128.18,26.0073]
[1725894737903,45.0,128.23,128.2,7.8002]
[1725894738390,45.0,128.23,128.2,19.4998]
[1725894738714,45.0,128.23,128.22,7.799]
[1725894739398,45.0,128.23,128.21,7.7996]
[1725894739705,45.0,128.23,128.2,19.4998]
[1725894739706,45.0,128.23,128.22,7.799]
[1725894740989,15.2541,128.3,128.21,38.9957]
[1725894741214,15.2541,128.3,128.27,7.7958]
[1725894741399,65.2541,128.3,128.26,19.4908]
[1725894741598,15.2541,128.3,128.26,27.2873]
[1725894742009,65.2541,128.3,128.26,27.2873]
[1725894742197,73.0483,128.3,128.25,7.7972]
[1725894742393,6.0887,128.33,128.22,58.95160924]
[1725894742394,50.0,128.32,128.22,58.95160924]
[1725894742711,51.35525392,128.32,128.29,7.7943]
[1725894743393,15.8788,128.33,128.24,88.71480924]
[1725894743603,15.8788,128.33,128.25,20.0]
[1725894743810,15.8788,128.33,128.29,19.4864]
[1725894744013,15.8788,128.33,128.3,7.7941]
[1725894744226,15.8788,128.33,128.29,19.4864]
[1725894744511,15.8788,128.33,128.29,27.2811]
[1725894744815,15.8788,128.33,128.29,27.281]
[1725894745114,15.8788,128.33,128.3,7.7942]
[1725894746494,45.0,128.32,128.29,27.281]
[1725894746917,95.0,128.32,128.24,38.9866]
[1725894747218,57.7943,128.3,128.25,7.7972]
[1725894747412,52.7949,128.29,128.24,7.7978]
[1725894748001,52.7949,128.29,128.23,19.4952]
[1725894748002,45.0,128.29,128.25,7.7972]
[1725894749794,52.7953,128.29,128.23,19.4952]
[1725894750020,45.0,128.29,128.26,7.7966]
[1725894750202,45.0,128.29,128.25,19.4925]
[1725894750402,45.0,128.29,128.26,7.7961]
[1725894750719,7.7948,128.29,128.25,19.4925]
[1725894750909,45.0,128.28,128.25,19.4925]
[1725894751807,45.0,128.28,128.25,27.2896]
[1725894752010,45.0,128.29,128.25,27.2896]
[1725894752526,52.7949,128.29,128.25,27.2896]
[1725894752827,7.7956,128.28,128.24,7.7976]
[1725894753000,45.0,128.27,128.24,7.7976]
[1725894753203,45.0,128.27,128.22,19.4968]
[1725894753499,60.4933,128.27,128.19,19.501]
[1725894753714,7.7971,128.26,128.21,7.7994]
[1725894753922,45.0,128.25,128.19,19.501]
[1725894754126,52.7977,128.25,128.2,7.8001]
[1725894754622,52.7977,128.25,128.21,7.7996]
[1725894754796,45.0,128.25,128.21,7.7996]
[1725894755523,52.7973,128.25,128.2,7.8001]
[1725894756109,45.0,128.25,128.21,19.4984]
[1725894757034,45.0,128.25,128.21,27.2979]
[1725894757322,52.7975,128.25,128.21,19.4984]
[1725894757621,52.7974,128.25,128.21,19.4984]
[1725894757925,52.7974,128.25,128.15,50.06930924]
[1725894757926,7.7991,128.22,128.18,27.3046]
[1725894758226,50.0,128.24,128.15,6.3559]
[1725894758430,52.7986,128.23,128.17,19.5046]
[1725894758721,52.7986,128.23,128.18,7.8013]
[1725894759228,45.0,128.23,128.19,19.5008]
[1725894759422,45.0,128.23,128.21,7.7995]
[1725894759612,45.0,128.24,128.21,7.7995]
[1725894760022,45.0,128.24,128.19,19.5008]
[1725894760203,29.6666,128.27,128.22,7.7988]
[1725894760529,29.6668,128.27,128.22,7.7989]
[1725894760707,7.7968,128.26,128.22,7.7989]
[1725894760909,7.7968,128.26,128.21,27.2982]
[1725894761430,7.7968,128.26,128.22,7.7989]
[1725894762122,45.0,128.25,128.21,27.2981]
[1725894762320,52.7975,128.25,128.21,19.4986]
[1725894762520,7.7985,128.23,128.18,27.3039]
[1725894762825,52.7992,128.22,128.18,27.3042]
[1725894763027,52.7992,128.22,128.15,25.8632]
[1725894763028,7.7998,128.21,128.15,25.8632]
[1725894763327,45.0,128.2,128.16,7.8025]
[1725894763704,45.0,128.2,128.17,7.8019]
[1725894764211,68.166,128.21,128.16,7.8025]
[1725894764426,60.3663,128.21,128.17,7.8021]
[1725894765528,60.3663,128.21,128.13,54.1092]
[1725894765708,1.35590995,128.22,128.13,97.82260924]
[1725894766034,7.7986,128.23,128.19,27.3025]
[1725894767334,45.0,128.22,128.19,27.3025]
[1725894768015,44.5,128.22,128.19,27.3025]
[1725894768611,44.5,128.22,128.19,19.5017]
[1725894769206,52.2992,128.22,128.19,19.5017]
[1725894769407,7.7997,128.21,128.17,7.802]
[1725894770331,45.0,128.2,128.17,7.802]
[1725894772118,45.0,128.2,128.19,7.8009]
[1725894772635,45.0,128.2,128.18,19.5034]
[1725894773135,52.8004,128.2,128.16,7.8026]
[1725894773445,45.0,128.2,128.17,7.802]
[1725894773618,45.0,128.2,128.18,7.8014]
[1725894773822,45.0,128.21,128.18,7.8014]
[1725894774026,52.7997,128.21,128.18,7.8014]
[1725894774219,52.7997,128.21,128.17,27.3067]
[1725894774735,7.8003,128.2,128.17,19.5048]
[1725894774934,52.8009,128.19,128.15,7.8032]
[1725894775236,45.0,128.19,128.16,7.8021]
[1725894775632,45.0,128.19,128.16,27.3088]